[Event "Kragero Resort International 2022"]
[Site "Kragero"]
[Date "2022.02.24"]
[Round "4.2"]
[White "Haug, Havard"]
[Black "Jonsson, Kristjan Dagur"]
[Result "1-0"]
[ECO "B10"]
[WhiteElo "1801"]
[BlackElo "1797"]
[Annotator "NA RC"]
[PlyCount "115"]
[EventDate "2022.02.23"]
[EventType "swiss"]
[EventCountry "NOR"]
[SourceTitle "playchess.com"]
[Source "ChessBase"]
[SourceQuality "1"]
[TimeControl "5400+30"]

1. e4 {[%emt 0:00:01]} c6 {[%emt 0:00:08]} 2. c4 {[%emt 0:00:23]} d5 {[%emt 0:00:34]} 3. cxd5 {[%emt 0:00:20]} cxd5 {[%emt 0:00:15]} 4. exd5 {[%emt 0:00:09]} Nf6 {[%emt 0:00:26]} 5. Nc3 {[%emt 0:00:24]} Nxd5 {[%emt 0:00:55]} 6. Bc4 {[%emt 0:00:38]} Nb6 {[%emt 0:04:32]} 7. Bb3 {[%emt 0:00:15]} Nc6 {[%emt 0:01:04]} 8. Nf3 {[%emt 0:00:20]} Bf5 {[%emt 0:02:15]} 9. d4 {[%emt 0:01:32]} Nb4 {[%emt 0:06:20]} 10. Ba4+ {[%emt 0:04:39]} Bd7 {[%emt 0:05:05]} 11. Bxd7+ {[%emt 0:00:11]} Nxd7 {[%emt 0:01:20]} 12. O-O {[%emt 0:00:34]} Nb6 {[%emt 0:03:25]} 13. Ne5 {[%emt 0:02:35]} e6 {[%emt 0:01:33]} 14. Qh5 {[%emt 0:05:24]} g6 {[%emt 0:14:22]} 15. Qf3 {[%emt 0:00:16]} f5 {[%emt 0:02:02]} 16. Qxb7 {[%emt 0:00:55]} Qe7 {[%emt 0:01:56]} 17. Qf3 {[%emt 0:04:11]} Bg7 {[%emt 0:02:32]} 18. Nc6 {[%emt 0:03:00]} Nxc6 {[%emt 0:01:10]} 19. Qxc6+ {[%emt 0:00:00]} Kf7 {[%emt 0:01:05]} 20. d5 {[%emt 0:00:00]} Rac8 {[%emt 0:08:12]} 21. dxe6+ {[%emt 0:02:15]} Qxe6 {[%emt 0:04:07]} 22. Qxe6+ {[%emt 0:01:42]} Kxe6 {[%emt 0:00:06]} 23. Re1+ {[%emt 0:00:48]} Kf7 {[%emt 0:00:12]} 24. Nb5 {[%emt 0:03:10]} Nc4 {[%emt 0:06:09]} 25. Bf4 {[%emt 0:13:26]} a6 {[%emt 0:07:04]} 26. Nd6+ {[%emt 0:07:07]} Nxd6 {[%emt 0:00:06]} 27. Bxd6 {[%emt 0:00:02]} Bxb2 {[%emt 0:03:31]} 28. Re7+ {[%emt 0:02:56]} Kf6 {[%emt 0:03:23]} 29. Rae1 {[%emt 0:01:52]} Rc1 {[%emt 0:00:54]} 30. Rxc1 {[%emt 0:00:16]} Bxc1 {[%emt 0:00:21]} 31. Ra7 {[%emt 0:00:41]} Re8 {[%emt 0:02:34]} 32. g3 {[%emt 0:00:43]} Re6 {[%emt 0:04:05]} 33. Rxa6 {[%emt 0:00:42]} f4 {[%emt 0:03:29]} 34. Kg2 {[%emt 0:01:23]} g5 {[%emt 0:01:52]} 35. Rb6 {[%emt 0:02:12]} g4 {[%emt 0:04:00]} 36. gxf4 {[%emt 0:01:08]} Bxf4 {[%emt 0:02:59]} 37. Bc5 {[%emt 0:00:48]} Rxb6 {[%emt 0:00:33]} 38. Bxb6 {[%emt 0:00:01]} Bd6 {[%emt 0:00:31]} 39. a4 {[%emt 0:00:12]} Ke6 {[%emt 0:00:38]} 40. a5 {[%emt 0:05:24]} Kd5 {[%emt 0:00:54]} 41. a6 {[%emt 0:00:56]} Kc6 {[%emt 0:00:07]} 42. Be3 {[%emt 0:00:31]} h5 {[%emt 0:00:40]} 43. h3 {[%emt 0:03:06]} Kc7 {[%emt 0:02:31]} 44. f3 {[%emt 0:02:25]} g3 {[%emt 0:01:07]} 45. h4 {[%emt 0:01:12]} Kb8 {[%emt 0:01:08]} 46. f4 {[%emt 0:00:19]} Be7 {[%emt 0:00:13]} 47. Kxg3 {[%emt 0:00:02]} Bf6 {[%emt 0:00:20]} 48. f5 {[%emt 0:00:00]} Ka8 {[%emt 0:00:12]} 49. Bg5 {[%emt 0:00:02]} Be5+ {[%emt 0:00:25]} 50. Kf3 {[%emt 0:00:05]} Ka7 {[%emt 0:00:32]} 51. Be7 {[%emt 0:00:07]} Kxa6 {[%emt 0:00:23]} 52. f6 {[%emt 0:00:08]} Kb7 {[%emt 0:00:24]} 53. f7 {[%emt 0:00:08]} Bg7 {[%emt 0:00:06]} 54. f8=Q {[%emt 0:00:07]} Bxf8 {[%emt 0:00:03]} 55. Bxf8 {[%emt 0:00:07]} Kc8 {[%emt 0:00:09]} 56. Kf4 {[%emt 0:00:03]} Kd7 {[%emt 0:00:10]} 57. Kg5 {[%emt 0:00:07]} Ke8 {[%emt 0:00:16]} 58. Ba3 {[%emt 0:00:06]} 1-0

[Event "Kragero Resort International 2022"]
[Site "Kragero"]
[Date "2022.02.24"]
[Round "4.3"]
[White "Strand, Amund Pihl"]
[Black "Dahli, Vincent"]
[Result "1-0"]
[ECO "A11"]
[WhiteElo "1748"]
[BlackElo "1714"]
[Annotator "NA RC"]
[PlyCount "65"]
[EventDate "2022.02.23"]
[EventType "swiss"]
[EventCountry "NOR"]
[SourceTitle "playchess.com"]
[Source "ChessBase"]
[SourceQuality "1"]
[TimeControl "5400+30"]

1. c4 {[%emt 0:00:02]} c6 {[%emt 0:00:24]} 2. g3 {[%emt 0:00:24]} d5 {[%emt 0:00:16]} 3. Bg2 {[%emt 0:00:08]} dxc4 {[%emt 0:00:32]} 4. Nf3 {[%emt 0:00:11]} Nf6 {[%emt 0:00:24]} 5. O-O {[%emt 0:00:32]} Nbd7 {[%emt 0:01:37]} 6. Na3 {[%emt 0:01:38]} e5 {[%emt 0:07:35]} 7. Nxc4 {[%emt 0:02:17]} Qc7 {[%emt 0:02:11]} 8. d4 {[%emt 0:01:44]} exd4 {[%emt 0:02:29]} 9. Bf4 {[%emt 0:02:18]} Qd8 {[%emt 0:01:54]} 10. Qxd4 {[%emt 0:11:06]} Bc5 {[%emt 0:07:31]} 11. Nd6+ {[%emt 0:02:18]} Bxd6 {[%emt 0:11:38]} 12. Bxd6 {[%emt 0:00:11]} Nb6 {[%emt 0:01:27]} 13. Ne5 {[%emt 0:13:32]} Nbd5 {[%emt 0:06:24]} 14. Ba3 {[%emt 0:04:17]} Be6 {[%emt 0:06:30]} 15. Rfd1 {[%emt 0:03:13]} Qc7 {[%emt 0:08:15]} 16. Nc4 {[%emt 0:05:29]} b6 {[%emt 0:06:29]} 17. Nd6+ {[%emt 0:08:34]} Kd7 {[%emt 0:07:10]} 18. e4 {[%emt 0:17:43]} c5 {[%emt 0:05:06]} 19. Qa4+ {[%emt 0:01:14]} Kxd6 {[%emt 0:02:47]} 20. exd5 {[%emt 0:02:13]} Nxd5 {[%emt 0:06:58]} 21. Rxd5+ {[%emt 0:05:53]} Bxd5 {[%emt 0:03:46]} 22. Rd1 {[%emt 0:00:08]} Rac8 {[%emt 0:03:28]} 23. Rxd5+ {[%emt 0:01:10]} Ke7 {[%emt 0:01:22]} 24. Qe4+ {[%emt 0:01:41]} Kf8 {[%emt 0:01:06]} 25. b4 {[%emt 0:03:13]} Re8 {[%emt 0:03:10]} 26. Qc4 {[%emt 0:01:39]} h6 {[%emt 0:02:29]} 27. bxc5 {[%emt 0:00:27]} Kg8 {[%emt 0:00:19]} 28. c6 {[%emt 0:00:53]} b5 {[%emt 0:00:41]} 29. Rxb5 {[%emt 0:01:12]} Qc8 {[%emt 0:00:25]} 30. Bd5 {[%emt 0:02:16]} Re1+ {[%emt 0:00:36]} 31. Kg2 {[%emt 0:00:07]} Qf5 {[%emt 0:00:27]} 32. Bxf7+ {[%emt 0:00:45]} Qxf7 {[%emt 0:00:20]} 33. Rb8+ {[%emt 0:00:08]} 1-0

[Event "Kragero Resort International 2022"]
[Site "Kragero"]
[Date "2022.02.24"]
[Round "4.4"]
[White "Thorisson, Benedikt"]
[Black "Johannessen, Martin T."]
[Result "1/2-1/2"]
[ECO "B76"]
[WhiteElo "1790"]
[BlackElo "1629"]
[Annotator "NA RC"]
[PlyCount "85"]
[EventDate "2022.02.23"]
[EventType "swiss"]
[EventCountry "NOR"]
[SourceTitle "playchess.com"]
[Source "ChessBase"]
[SourceQuality "1"]
[TimeControl "5400+30"]

1. e4 {[%emt 0:00:03]} c5 {[%emt 0:00:04]} 2. Nf3 {[%emt 0:00:11]} d6 {[%emt 0:00:08]} 3. d4 {[%emt 0:00:17]} cxd4 {[%emt 0:00:08]} 4. Nxd4 {[%emt 0:00:05]} Nf6 {[%emt 0:00:06]} 5. Nc3 {[%emt 0:00:11]} g6 {[%emt 0:00:20]} 6. Be3 {[%emt 0:01:05]} Bg7 {[%emt 0:00:10]} 7. f3 {[%emt 0:00:28]} O-O {[%emt 0:00:09]} 8. Qd2 {[%emt 0:01:10]} Nc6 {[%emt 0:00:43]} 9. g4 {[%emt 0:00:31]} Nxd4 {[%emt 0:00:33]} 10. Bxd4 {[%emt 0:00:14]} Be6 {[%emt 0:00:26]} 11. h4 {[%emt 0:01:19]} Rc8 {[%emt 0:00:46]} 12. h5 {[%emt 0:02:27]} Qa5 {[%emt 0:21:53]} 13. Bh3 {[%emt 0:16:42]} g5 {[%emt 0:04:53]} 14. e5 {[%emt 0:01:07]} Nd5 {[%emt 0:08:24]} 15. Qxg5 {[%emt 0:19:54]} h6 {[%emt 0:05:15]} 16. Qd2 {[%emt 0:00:45]} dxe5 {[%emt 0:01:20]} 17. Nxd5 {[%emt 0:00:58]} Qxd2+ {[%emt 0:00:22]} 18. Kxd2 {[%emt 0:00:07]} Bxd5 {[%emt 0:00:28]} 19. Bxa7 {[%emt 0:00:39]} Bxf3 {[%emt 0:00:27]} 20. Rhg1 {[%emt 0:00:40]} Rfd8+ {[%emt 0:08:45]} 21. Ke3 {[%emt 0:00:46]} e4 {[%emt 0:01:21]} 22. g5 {[%emt 0:07:37]} Rc6 {[%emt 0:07:52]} 23. gxh6 {[%emt 0:01:37]} Rxh6 {[%emt 0:00:10]} 24. Rg3 {[%emt 0:01:15]} Bxh5 {[%emt 0:06:15]} 25. Rag1 {[%emt 0:00:36]} Bg6 {[%emt 0:08:19]} 26. Bf5 {[%emt 0:01:43]} Rd6 {[%emt 0:10:04]} 27. Bc5 {[%emt 0:02:39]} Rd5 {[%emt 0:00:36]} 28. Bxg6 {[%emt 0:00:34]} Rxg6 {[%emt 0:04:26]} 29. Bxe7 {[%emt 0:01:44]} Bxb2 {[%emt 0:02:41]} 30. Rxg6+ {[%emt 0:05:04]} fxg6 {[%emt 0:00:07]} 31. Rxg6+ {[%emt 0:00:24]} Kf7 {[%emt 0:00:39]} 32. Rd6 {[%emt 0:00:30]} Ra5 {[%emt 0:05:25]} 33. Rb6 {[%emt 0:03:03]} Bc1+ {[%emt 0:00:11]} 34. Kxe4 {[%emt 0:00:50]} Kxe7 {[%emt 0:00:14]} 35. Rxb7+ {[%emt 0:00:09]} Kd6 {[%emt 0:00:48]} 36. c4 {[%emt 0:01:15]} Rxa2 {[%emt 0:00:44]} 37. Kd4 {[%emt 0:00:43]} Bb2+ {[%emt 0:00:55]} 38. Kd3 {[%emt 0:00:30]} Kc6 {[%emt 0:00:18]} 39. Rb8 {[%emt 0:01:37]} Be5 {[%emt 0:00:39]} 40. Rb3 {[%emt 0:00:54]} Rh2 {[%emt 0:00:39]} 41. Ke4 {[%emt 0:00:49]} Bf6 {[%emt 0:01:02]} 42. Rf3 {[%emt 0:01:08]} Rh4+ {[%emt 0:00:13]} 43. Rf4 {[%emt 0:00:47]} 1/2-1/2

[Event "Kragero Resort International 2022"]
[Site "Kragero"]
[Date "2022.02.24"]
[Round "4.5"]
[White "Stolp, Aleksander"]
[Black "Ostensen, Nicolai Maxime"]
[Result "0-1"]
[ECO "A74"]
[WhiteElo "1680"]
[BlackElo "1728"]
[Annotator "NA RC"]
[PlyCount "126"]
[EventDate "2022.02.23"]
[EventType "swiss"]
[EventCountry "NOR"]
[SourceTitle "playchess.com"]
[Source "ChessBase"]
[SourceQuality "1"]
[TimeControl "5400+30"]

1. d4 {[%emt 0:00:03]} Nf6 {[%emt 0:00:04]} 2. c4 {[%emt 0:00:07]} c5 {[%emt 0:00:04]} 3. d5 {[%emt 0:00:08]} e6 {[%emt 0:00:04]} 4. Nc3 {[%emt 0:00:07]} exd5 {[%emt 0:00:03]} 5. cxd5 {[%emt 0:00:08]} d6 {[%emt 0:00:03]} 6. Nf3 {[%emt 0:00:12]} g6 {[%emt 0:00:05]} 7. Nd2 {[%emt 0:00:09]} a6 {[%emt 0:01:23]} 8. a4 {[%emt 0:00:22]} Bg7 {[%emt 0:00:05]} 9. e4 {[%emt 0:00:09]} O-O {[%emt 0:00:14]} 10. Be2 {[%emt 0:00:07]} Nbd7 {[%emt 0:01:01]} 11. O-O {[%emt 0:01:46]} Rb8 {[%emt 0:00:32]} 12. a5 {[%emt 0:00:49]} Ne8 {[%emt 0:00:32]} 13. Nc4 {[%emt 0:04:18]} Qe7 {[%emt 0:00:43]} 14. Qc2 {[%emt 0:01:17]} Ne5 {[%emt 0:02:39]} 15. Nb6 {[%emt 0:01:50]} f5 {[%emt 0:03:38]} 16. f4 {[%emt 0:17:21]} Nd7 {[%emt 0:01:30]} 17. Nxc8 {[%emt 0:13:15]} Rxc8 {[%emt 0:00:07]} 18. exf5 {[%emt 0:00:08]} gxf5 {[%emt 0:00:59]} 19. Nd1 {[%emt 0:05:33]} Nef6 {[%emt 0:02:55]} 20. Ne3 {[%emt 0:04:07]} Ne4 {[%emt 0:03:54]} 21. Bf3 {[%emt 0:03:58]} Rce8 {[%emt 0:03:06]} 22. Ra3 {[%emt 0:09:14]} Bd4 {[%emt 0:08:08]} 23. Kh1 {[%emt 0:03:22]} Qf7 {[%emt 0:04:41]} 24. Qd1 {[%emt 0:09:06]} Qe7 {[%emt 0:03:12]} 25. Rb3 {[%emt 0:04:34]} Rb8 {[%emt 0:00:59]} 26. Qc2 {[%emt 0:00:47]} Bxe3 {[%emt 0:02:56]} 27. Rxe3 {[%emt 0:03:43]} Ndf6 {[%emt 0:00:22]} 28. Bxe4 {[%emt 0:04:39]} Nxe4 {[%emt 0:01:09]} 29. b3 {[%emt 0:00:46]} Rbe8 {[%emt 0:06:10]} 30. Rff3 {[%emt 0:01:19]} Rf6 {[%emt 0:00:43]} 31. Bb2 {[%emt 0:02:25]} Rg6 {[%emt 0:00:35]} 32. Kg1 {[%emt 0:03:17]} Qd8 {[%emt 0:05:52]} 33. Bc3 {[%emt 0:01:49]} Qd7 {[%emt 0:00:18]} 34. Qd3 {[%emt 0:01:50]} h6 {[%emt 0:04:38]} 35. Bb2 {[%emt 0:01:16]} Qb5 {[%emt 0:00:37]} 36. Qxb5 {[%emt 0:01:05]} axb5 {[%emt 0:00:06]} 37. Rf1 {[%emt 0:01:07]} b4 {[%emt 0:00:56]} 38. Ra1 {[%emt 0:00:40]} Ra8 {[%emt 0:00:08]} 39. Ra4 {[%emt 0:01:42]} Ra6 {[%emt 0:00:19]} 40. Rh3 {[%emt 0:00:55]} Nd2 {[%emt 0:09:16]} 41. Rd3 {[%emt 0:00:25]} Ne4 {[%emt 0:01:35]} 42. Rh3 {[%emt 0:00:05]} Ra8 {[%emt 0:05:31]} 43. Rh5 {[%emt 0:00:48]} Nd2 {[%emt 0:00:37]} 44. Rh3 {[%emt 0:00:33]} Kh7 {[%emt 0:00:38]} 45. Re3 {[%emt 0:00:47]} Ne4 {[%emt 0:00:15]} 46. Rh3 {[%emt 0:00:27]} Rg4 {[%emt 0:00:17]} 47. Rf3 {[%emt 0:00:43]} Rgg8 {[%emt 0:01:08]} 48. Rh3 {[%emt 0:00:35]} Ra6 {[%emt 0:00:11]} 49. Re3 {[%emt 0:00:25]} h5 {[%emt 0:02:29]} 50. Re1 {[%emt 0:00:38]} Rga8 {[%emt 0:00:16]} 51. Rea1 {[%emt 0:00:09]} Kg6 {[%emt 0:00:11]} 52. g3 {[%emt 0:00:46]} Kf7 {[%emt 0:00:13]} 53. Kg2 {[%emt 0:00:27]} Nd2 {[%emt 0:00:17]} 54. Re1 {[%emt 0:00:12]} Rxa5 {[%emt 0:00:41]} 55. Rxa5 {[%emt 0:00:24]} Rxa5 {[%emt 0:00:03]} 56. Re6 {[%emt 0:00:19]} Ne4 {[%emt 0:00:12]} 57. Kh3 {[%emt 0:00:53]} b5 {[%emt 0:00:38]} 58. Rh6 {[%emt 0:00:23]} Ra2 {[%emt 0:00:40]} 59. Bh8 {[%emt 0:00:41]} Nf2+ {[%emt 0:00:41]} 60. Kh4 {[%emt 0:00:14]} Ne4 {[%emt 0:01:19]} 61. Kh3 {[%emt 0:00:35]} c4 {[%emt 0:00:29]} 62. Bd4 {[%emt 0:00:48]} Rd2 {[%emt 0:00:31]} 63. Bh8 {[%emt 0:00:41]} cxb3 {[%emt 0:00:17]} 0-1

[Event "Kragero Resort International 2022"]
[Site "Kragero"]
[Date "2022.02.24"]
[Round "4.6"]
[White "Haugen, Lars Tormod"]
[Black "Lien, Sebastian"]
[Result "1-0"]
[ECO "A28"]
[WhiteElo "1710"]
[BlackElo "1532"]
[Annotator "NA RC"]
[PlyCount "97"]
[EventDate "2022.02.23"]
[EventType "swiss"]
[EventCountry "NOR"]
[SourceTitle "playchess.com"]
[Source "ChessBase"]
[SourceQuality "1"]
[TimeControl "5400+30"]

1. c4 {[%emt 0:00:10]} e5 {[%emt 0:00:05]} 2. Nc3 {[%emt 0:00:12]} Nf6 {[%emt 0:01:20]} 3. Nf3 {[%emt 0:01:03]} Nc6 {[%emt 0:00:09]} 4. a3 {[%emt 0:00:28]} d5 {[%emt 0:00:11]} 5. cxd5 {[%emt 0:00:42]} Nxd5 {[%emt 0:00:07]} 6. Qc2 {[%emt 0:02:20]} Be6 {[%emt 0:00:20]} 7. e3 {[%emt 0:02:14]} Be7 {[%emt 0:00:10]} 8. b4 {[%emt 0:03:06]} a6 {[%emt 0:01:43]} 9. Bb2 {[%emt 0:01:50]} O-O {[%emt 0:00:12]} 10. Nxd5 {[%emt 0:18:22]} Qxd5 {[%emt 0:00:18]} 11. Rc1 {[%emt 0:04:01]} f5 {[%emt 0:27:39]} 12. Be2 {[%emt 0:17:40]} e4 {[%emt 0:10:39]} 13. Nd4 {[%emt 0:01:39]} Nxd4 {[%emt 0:00:07]} 14. Bxd4 {[%emt 0:00:23]} c6 {[%emt 0:00:17]} 15. O-O {[%emt 0:17:52]} Rad8 {[%emt 0:22:19]} 16. f3 {[%emt 0:02:10]} Bf6 {[%emt 0:05:23]} 17. fxe4 {[%emt 0:06:50]} fxe4 {[%emt 0:01:04]} 18. Bxf6 {[%emt 0:03:45]} Rxf6 {[%emt 0:00:06]} 19. Rxf6 {[%emt 0:02:28]} gxf6 {[%emt 0:00:06]} 20. Bc4 {[%emt 0:02:01]} Qxc4 {[%emt 0:07:10]} 21. Qxc4 {[%emt 0:00:02]} Bxc4 {[%emt 0:00:13]} 22. Rxc4 {[%emt 0:00:04]} f5 {[%emt 0:00:37]} 23. Rd4 {[%emt 0:09:53]} Rxd4 {[%emt 0:02:00]} 24. exd4 {[%emt 0:00:01]} Kf7 {[%emt 0:00:25]} 25. Kf2 {[%emt 0:00:11]} f4 {[%emt 0:00:24]} 26. g3 {[%emt 0:00:39]} f3 {[%emt 0:00:29]} 27. d3 {[%emt 0:00:34]} exd3 {[%emt 0:09:22]} 28. Kxf3 {[%emt 0:00:18]} Kf6 {[%emt 0:01:01]} 29. Ke3 {[%emt 0:00:42]} d2 {[%emt 0:00:16]} 30. Kxd2 {[%emt 0:00:10]} Kf5 {[%emt 0:00:13]} 31. Ke3 {[%emt 0:02:08]} Kg4 {[%emt 0:00:27]} 32. Kf2 {[%emt 0:00:32]} Kh3 {[%emt 0:00:13]} 33. Kg1 {[%emt 0:00:13]} b6 {[%emt 0:06:00]} 34. a4 {[%emt 0:01:10]} a5 {[%emt 0:01:38]} 35. bxa5 {[%emt 0:00:52]} bxa5 {[%emt 0:00:04]} 36. Kh1 {[%emt 0:00:21]} h5 {[%emt 0:00:58]} 37. Kg1 {[%emt 0:00:02]} h4 {[%emt 0:00:31]} 38. gxh4 {[%emt 0:00:38]} Kxh4 {[%emt 0:00:09]} 39. Kg2 {[%emt 0:01:07]} Kg4 {[%emt 0:00:29]} 40. h3+ {[%emt 0:00:53]} Kf4 {[%emt 0:00:51]} 41. Kf2 {[%emt 0:00:23]} Ke4 {[%emt 0:00:42]} 42. Ke2 {[%emt 0:00:44]} Kxd4 {[%emt 0:00:51]} 43. h4 {[%emt 0:00:11]} Ke5 {[%emt 0:00:13]} 44. Kd3 {[%emt 0:00:30]} Kf5 {[%emt 0:02:34]} 45. Kc4 {[%emt 0:00:04]} Kg4 {[%emt 0:00:10]} 46. Kc5 {[%emt 0:00:05]} Kxh4 {[%emt 0:00:03]} 47. Kxc6 {[%emt 0:00:08]} Kg5 {[%emt 0:00:11]} 48. Kb5 {[%emt 0:00:07]} Kf6 {[%emt 0:00:18]} 49. Kxa5 {[%emt 0:00:09]} 1-0

[Event "Kragero Resort International 2022"]
[Site "Kragero"]
[Date "2022.02.24"]
[Round "4.7"]
[White "Carlin, Tormod"]
[Black "Omtvedt, Per"]
[Result "0-1"]
[ECO "D36"]
[WhiteElo "1630"]
[BlackElo "1829"]
[Annotator "NA RC"]
[PlyCount "166"]
[EventDate "2022.02.23"]
[EventType "swiss"]
[EventCountry "NOR"]
[SourceTitle "playchess.com"]
[Source "ChessBase"]
[SourceQuality "1"]
[TimeControl "5400+30"]

1. d4 {[%emt 0:00:06]} Nf6 {[%emt 0:00:24]} 2. c4 {[%emt 0:00:09]} e6 {[%emt 0:00:15]} 3. Nc3 {[%emt 0:00:06]} d5 {[%emt 0:00:04]} 4. cxd5 {[%emt 0:00:08]} exd5 {[%emt 0:00:08]} 5. Bg5 {[%emt 0:00:08]} c6 {[%emt 0:00:23]} 6. Qc2 {[%emt 0:00:17]} Be7 {[%emt 0:00:17]} 7. e3 {[%emt 0:00:09]} O-O {[%emt 0:00:15]} 8. Bd3 {[%emt 0:00:09]} Nbd7 {[%emt 0:00:17]} 9. Nge2 {[%emt 0:00:23]} Re8 {[%emt 0:00:48]} 10. O-O {[%emt 0:00:12]} h6 {[%emt 0:00:40]} 11. Bh4 {[%emt 0:01:05]} Ne4 {[%emt 0:02:29]} 12. Bxe7 {[%emt 0:00:00]} Qxe7 {[%emt 0:01:16]} 13. Bxe4 {[%emt 0:03:43]} dxe4 {[%emt 0:00:00]} 14. d5 {[%emt 0:00:56]} Nf6 {[%emt 0:07:05]} 15. dxc6 {[%emt 0:01:34]} bxc6 {[%emt 0:00:05]} 16. Rfd1 {[%emt 0:00:56]} Ba6 {[%emt 0:08:57]} 17. Rac1 {[%emt 0:02:01]} Bd3 {[%emt 0:01:14]} 18. Qa4 {[%emt 0:03:37]} c5 {[%emt 0:01:24]} 19. b3 {[%emt 0:04:55]} Rab8 {[%emt 0:04:16]} 20. Nf4 {[%emt 0:01:27]} Red8 {[%emt 0:01:10]} 21. Nxd3 {[%emt 0:07:35]} exd3 {[%emt 0:00:40]} 22. Qc4 {[%emt 0:00:35]} Rb4 {[%emt 0:01:45]} 23. Qa6 {[%emt 0:00:19]} Rb6 {[%emt 0:06:01]} 24. Qc4 {[%emt 0:02:17]} Rb4 {[%emt 0:00:56]} 25. Qa6 {[%emt 0:00:06]} Rb6 {[%emt 0:01:34]} 26. Qa5 {[%emt 0:02:59]} Ng4 {[%emt 0:14:20]} 27. h3 {[%emt 0:08:57]} Nxe3 {[%emt 0:00:00]} 28. fxe3 {[%emt 0:01:43]} Qxe3+ {[%emt 0:00:00]} 29. Kh1 {[%emt 0:00:16]} d2 {[%emt 0:04:52]} 30. Rb1 {[%emt 0:03:06]} Rdd6 {[%emt 0:01:41]} 31. Na4 {[%emt 0:01:15]} Rbc6 {[%emt 0:05:44]} 32. Rb2 {[%emt 0:04:15]} Ra6 {[%emt 0:11:13]} 33. Qxc5 {[%emt 0:01:28]} Qe1+ {[%emt 0:01:41]} 34. Qg1 {[%emt 0:00:17]} Qe2 {[%emt 0:00:45]} 35. Nc5 {[%emt 0:10:56]} Rac6 {[%emt 0:00:58]} 36. b4 {[%emt 0:01:32]} a5 {[%emt 0:03:04]} 37. Nb7 {[%emt 0:03:17]} Rc1 {[%emt 0:37:22]} 38. Rxc1 {[%emt 0:36:01]} dxc1=Q {[%emt 0:00:00]} 39. Qxc1 {[%emt 0:00:33]} Rd1+ {[%emt 0:00:00]} 40. Qxd1 {[%emt 0:00:26]} Qxd1+ {[%emt 0:00:00]} 41. Kh2 {[%emt 0:00:03]} Qd5 {[%emt 0:00:00]} 42. Rb3 {[%emt 0:01:00]} Qxb7 {[%emt 0:00:00]} 43. bxa5 {[%emt 0:00:32]} Qc7+ {[%emt 0:00:00]} 44. Kg1 {[%emt 0:00:28]} Qxa5 {[%emt 0:00:00]} 45. Rb8+ {[%emt 0:00:20]} Kh7 {[%emt 0:00:00]} 46. Rb3 {[%emt 0:00:34]} Qxa2 {[%emt 0:00:00]} 47. Rf3 {[%emt 0:00:03]} g5 {[%emt 0:00:00]} 48. g4 {[%emt 0:00:25]} Kg6 {[%emt 0:00:00]} 49. Rf2 {[%emt 0:00:13]} Qe6 {[%emt 0:00:00]} 50. Kg2 {[%emt 0:00:14]} h5 {[%emt 0:00:00]} 51. Kg3 {[%emt 0:01:00]} Qe3+ {[%emt 0:00:00]} 52. Kg2 {[%emt 0:00:11]} h4 {[%emt 0:00:00]} 53. Rf3 {[%emt 0:00:31]} Qe4 {[%emt 0:00:00]} 54. Kf2 {[%emt 0:00:33]} f6 {[%emt 0:00:00]} 55. Kg2 {[%emt 0:00:38]} Qd5 {[%emt 0:00:00]} 56. Kf2 {[%emt 0:00:18]} Qd2+ {[%emt 0:00:00]} 57. Kg1 {[%emt 0:00:40]} Qe1+ {[%emt 0:00:00]} 58. Kg2 {[%emt 0:00:04]} Kf7 {[%emt 0:00:00]} 59. Rf2 {[%emt 0:00:18]} Ke6 {[%emt 0:00:00]} 60. Rf3 {[%emt 0:00:51]} Ke5 {[%emt 0:00:00]} 61. Rf5+ {[%emt 0:01:08]} Ke4 {[%emt 0:00:00]} 62. Rf2 {[%emt 0:01:01]} Qe3 {[%emt 0:00:00]} 63. Kg1 {[%emt 0:00:30]} Qxh3 {[%emt 0:00:00]} 64. Re2+ {[%emt 0:00:12]} Qe3+ {[%emt 0:00:00]} 65. Rxe3+ {[%emt 0:00:45]} Kxe3 {[%emt 0:00:00]} 66. Kg2 {[%emt 0:00:05]} Kf4 {[%emt 0:00:00]} 67. Kh3 {[%emt 0:00:05]} Kf3 {[%emt 0:00:00]} 68. Kh2 {[%emt 0:00:05]} Kxg4 {[%emt 0:00:00]} 69. Kg2 {[%emt 0:00:04]} f5 {[%emt 0:00:00]} 70. Kf2 {[%emt 0:00:09]} f4 {[%emt 0:00:00]} 71. Kg2 {[%emt 0:00:04]} f3+ {[%emt 0:00:00]} 72. Kf2 {[%emt 0:00:03]} Kf4 {[%emt 0:00:00]} 73. Kf1 {[%emt 0:00:05]} Ke3 {[%emt 0:00:00]} 74. Kg1 {[%emt 0:00:12]} Ke2 {[%emt 0:00:00]} 75. Kh1 {[%emt 0:00:10]} f2 {[%emt 0:00:00]} 76. Kh2 {[%emt 0:00:04]} f1=R {[%emt 0:00:00]} 77. Kg2 {[%emt 0:00:04]} g4 {[%emt 0:00:00]} 78. Kh2 {[%emt 0:00:06]} Rf2+ {[%emt 0:00:00]} 79. Kh1 {[%emt 0:00:11]} Kf3 {[%emt 0:00:00]} 80. Kg1 {[%emt 0:00:09]} h3 {[%emt 0:00:00]} 81. Kh1 {[%emt 0:00:04]} g3 {[%emt 0:00:00]} 82. Kg1 {[%emt 0:00:05]} Ra2 {[%emt 0:00:00]} 83. Kh1 {[%emt 0:00:07]} Ra1# {[%emt 0:00:00]} 0-1